Cogmind - Beta 13 @@@ ROGUE MODE // 2024.04.21 @ 12:19:14 Player: Lunace Result: Destroyed by as-74731 with Assembled F-torch Performance ------------- Evolutions (0) 0 Regions Visited (2) 400 Robots Destroyed (13) 65 Value Destroyed (264) 264 Prototype IDs (0) 0 Alien Tech Used (0) 0 Bonus (0) 0 TOTAL SCORE: 729 Bonus ------- None Cogmind --------- Core Integrity 0/250 Matter 282/300 Energy 100/100 System Corruption 0% Temperature Cool (60) Movement Core (50) Location -10/Mines Parts ------- > --- POWER (1) -------- (None) > --- PROPULSION (2) --- (None) > --- UTILITY (2) ------ (None) > --- WEAPON (2) ------- (None) > --- INVENTORY (5) ---- Light Ion Engine Large Matter Pod (150) Large Matter Pod (0) Large Matter Pod (0) ECM Suite Peak State ------------ > --- POWER ------------ Ion Engine > --- PROPULSION ------- Aluminum Leg Aluminum Leg > --- UTILITY ---------- Large Storage Unit Light Armor Plating > --- WEAPON ----------- Light Assault Rifle Light Assault Rifle > --- INVENTORY -------- Ion Engine Light Ion Engine Aluminum Leg Large Matter Pod Large Matter Pod Signal Interpreter Light Armor Plating Light Armor Plating Medium Laser Light Assault Rifle [Rating: 8] Favorites ----------- Power Ion Engine Engine Ion Engine Propulsion Aluminum Leg Leg Aluminum Leg Utility Light Armor Plating Device Tractor Beam Storage Small Storage Unit Protection Light Armor Plating Weapon Light Assault Rifle Energy Gun Medium Laser Ballistic Gun Light Assault Rifle Build | -11 -10 -10 ------- Run | Yrd Mat Min Slots Evolved . | . . . Power . | . . . Propulsion . | . . . Utility . | . . . Weapon . | . . . Parts Attached 31 | 7 17 7 Power 5 | 1 3 1 Engine 5 | 1 3 1 Core . | . . . Reactor . | . . . Propulsion 9 | 2 6 1 Treads . | . . . Leg 9 | 2 6 1 Wheel . | . . . Hover . | . . . Flight . | . . . Utility 9 | 2 4 3 Device 1 | 1 . . Storage 2 | 1 1 . Processor . | . . . Hackware . | . . . Protection 6 | . 3 3 Artifact . | . . . Weapon 8 | 2 4 2 Energy Gun 1 | . . 1 Energy Cannon . | . . . Ballistic Gun 7 | 2 4 1 Ballistic Cannon . | . . . Launcher . | . . . Special Weapon . | . . . Impact Weapon . | . . . Slashing Weapon . | . . . Piercing Weapon . | . . . Special Melee Weapon . | . . . Unidentified Prototypes . | . . . Parts Lost 11 | . . 11 Power 1 | . . 1 Propulsion 3 | . . 3 Utility 3 | . . 3 Weapon 4 | . . 4 Highest Loss Streak 11 | . . 11 To Critical Strikes . | . . . Average Slot Usage (%) 96 | . 98 75 Engine 13 | . 14 12 Leg 26 | . 27 20 Device 4 | . 5 . Storage 14 | . 14 14 Protection 8 | . 8 9 Ballistic Gun 26 | . 27 17 Naked Turns . | . . . Heaviest Build 30 | 13 30 30 Greatest Support 20 | 20 20 20 Greatest Overweight (x) 2 | 1 2 2 Average Overweight (x) . | . . 1 Largest Inventory Capacity 15 | 8 15 15 Average Capacity 11 | 7 10 14 Most Carried 15 | 2 15 14 Average Carried 8 | 1 8 10 Final Capacity 15 | 8 15 5 Final Carried 15 | 2 15 5 Class Distribution -------------------- 83% | Mutant 16% | Scavenger-Mutant Dominant Class ---------------- Mutant | -10/Materials Mutant | -10/Mines Resources | -11 -10 -10 ----------- Run | Yrd Mat Min Matter Collected 772 | 271 481 20 Remotely 301 | 176 125 . Salvage Created 559 | 54 468 37 Parts 25 | 3 22 . Haulers Intercepted 1 | . 1 . Recyclers Shooed 1 | . 1 . Parts Field Recycled . | . . . Retrieved Matter . | . . . Parts Self-Destructed . | . . . Prevented . | . . . Kills | -11 -10 -10 ------- Run | Yrd Mat Min Combat Hostiles Destroyed 11 | . 9 2 Guns 11 | . 9 2 Classes Destroyed 6 | 1 4 1 Hauler 1 | . 1 . Recycler 2 | 1 1 . Watcher 1 | . 1 . Swarmer 3 | . 3 . Grunt 6 | . 6 . Assembled 2 | . . 2 Best Kill Streak 4 | 1 4 1 Combat Bots Only 4 | . 4 1 Max Kills in Single Turn 1 | 1 1 1 Gunslinging . | . . . Exploded . | . . . Melee . | . . . Uniques/NPCs Destroyed . | . . . Combat | -11 -10 -10 -------- Run | Yrd Mat Min Hostile Shots Fired 124 | . 57 67 Missed 30 | . 14 16 Damage Taken 1420 | . 444 976 Core 254 | . 55 199 Absorbed by Shields . | . . . Regen/Repaired (Parts) 69 | . 69 . Core Remaining (%) 100 | 100 . . Volleys Fired 76 | 1 57 18 Largest 2 | 2 2 2 Hottest 70 | 40 40 70 Shots Fired 140 | 2 114 24 Gun 140 | 2 114 24 Cannon . | . . . Launcher . | . . . Special . | . . . Kinetic 136 | 2 114 20 Thermal 4 | . . 4 Explosive . | . . . Electromagnetic . | . . . Robot Hit Streak 10 | 2 10 3 Robot Miss Streak 3 | . 3 2 Penetration Max . | . . . Secondary Targets . | . . . Shots Hit Robots 90 | 2 75 13 Core Hits 34 | 2 25 7 Critical Kills . | . . . Critical Parts Destroyed 1 | . 1 . Critical Strikes 1 | . 1 . Destroy 1 | . 1 . Melee Attacks . | . . . Impact . | . . . Slashing . | . . . Piercing . | . . . Sneak Attacks . | . . . Combat Hostiles . | . . . Follow-up Attacks . | . . . Damage Inflicted 737 | 15 612 110 Guns 735 | 15 612 108 Cannons . | . . . Explosions . | . . . Melee . | . . . Ramming 2 | . . 2 Kinetic 723 | 15 612 96 Thermal 12 | . . 12 Explosive . | . . . Electromagnetic . | . . . Impact . | . . . Slashing . | . . . Piercing . | . . . Highest Corruption . | . . . Average Corruption . | . . . Corruption Purged . | . . . Corruption Blocked . | . . . Overload Shots . | . . . Overflow Damage . | . . . Projectiles . | . . . Explosions . | . . . Melee . | . . . Knockbacks . | . . . Impact . | . . . Kinetic . | . . . Secondary . | . . . Self-Inflicted Damage . | . . . Shots . | . . . Rammed . | . . . Targets Rammed 3 | . . 3 Kicked 3 | . . 3 Crushed . | . . . Highest Temperature 60 | . 12 60 Average Temperature 11 | . 6 19 Received Heat Transfer 474 | . 174 300 Siege Activations . | . . . Robots Corrupted . | . . . Combat Hostiles . | . . . Parts Fried . | . . . Impact Corruptions . | . . . Robots Melted . | . . . Combat Hostiles . | . . . Parts Melted . | . . . Heat Transferred 37 | . . 37 Parts Sabotaged . | . . . Parts Stolen . | . . . Parts Stripped . | . . . Power Chain Reactions . | . . . Alert | -11 -10 -10 ------- Run | Yrd Mat Min Peak Influence 265 | 5 265 31 Initial 31 | . 3 31 Average 98 | 2 118 9 Maximum Alert Level 1 | . 1 . Low Security (%) 77 | 100 72 100 Level 1 22 | . 27 . Level 2 . | . . . Level 3 . | . . . Level 4 . | . . . Level 5 . | . . . High Security . | . . . Max Security . | . . . Squads Dispatched 1 | . 1 . Investigation . | . . . Extermination . | . . . Reinforcement 1 | . 1 . Assault . | . . . Garrison . | . . . Intercept . | . . . Searches Triggered . | . . . Construction Impeded . | . . . Haulers Reinforced . | . . . Active Scanning Responses . | . . . Cargo Convoy Interrupts . | . . . Stealth | -11 -10 -10 --------- Run | Yrd Mat Min Distress Signals 2 | . 2 . Communications Jammed . | . . . Distress Signals . | . . . Times Spotted 38 | . 14 24 Peak Tracking Total 20 | . 4 20 Tactical Retreats 3 | . . 3 Traps | -11 -10 -10 ------- Run | Yrd Mat Min Traps Triggered 3 | . 3 . Indirectly . | . . . Trap Hack Attempts . | . . . Triggered . | . . . Disarmed . | . . . Reprogrammed . | . . . Reused . | . . . Traps Extracted . | . . . Installed . | . . . Triggered . | . . . Machines | -11 -10 -10 ---------- Run | Yrd Mat Min Machines Disabled . | . . . Max in Single Turn . | . . . Machines Repaired . | . . . Machines Dismantled . | . . . Machines Sabotaged . | . . . Overloaded Fab Kills . | . . . Hacking | -11 -10 -10 --------- Run | Yrd Mat Min Machines Accessed 5 | . 5 . Terminals 4 | . 4 . Fabricators . | . . . Repair Stations 1 | . 1 . Recycling Units . | . . . Scanalyzers . | . . . Garrison Access . | . . . Total Hacks 12 | . 12 . Successful 6 | . 6 . Failed 6 | . 6 . Catastrophic 2 | . 2 . Database Lockouts . | . . . Manual 9 | . 9 . Terminals 9 | . 9 . Fabricators . | . . . Repair Stations 3 | . 3 . Recycling Units . | . . . Scanalyzers . | . . . Garrison Access . | . . . Terminal Hacks 3 | . 3 . Branch Access Points 1 | . 1 . Recall Investigation 1 | . 1 . Registered Components 1 | . 1 . Fabricator Hacks . | . . . Repair Station Hacks 2 | . 2 . Scan Component 1 | . 1 . Repair 1 | . 1 . Recycling Unit Hacks . | . . . Scanalyzer . | . . . Garrison Access Hacks . | . . . Unauthorized Hacks 1 | . 1 . Terminals 1 | . 1 . Assimilate 1 | . 1 . Fabricators . | . . . Repair Stations . | . . . Recycling Units . | . . . Scanalyzers . | . . . Garrison Access . | . . . Data Cores Recovered . | . . . Used . | . . . Hacking Detections 3 | . 3 . Full Trace Events 1 | . 1 . Feedback Events . | . . . Feedback Blocked . | . . . Robot Schematics Acquired . | . . . Robots Built . | . . . Authchips . | . . . Time . | . . . Total Robot Build Rating . | . . . Part Schematics Acquired . | . . . Parts Built . | . . . Authchips . | . . . Time . | . . . Total Part Build Rating . | . . . Parts Repaired 1 | . 1 . Time 26 | . 26 . Parts Recycled . | . . . Recycled Matter . | . . . Retrieved Matter . | . . . Retrieved Components . | . . . Parts Scanalyzed . | . . . Part Schematics Acquired . | . . . Parts Damaged . | . . . Bothacking | -11 -10 -10 ------------ Run | Yrd Mat Min Used RIF Installer . | . . . Robots Hacked . | . . . Non-combat . | . . . Combat . | . . . Robot Hacks Applied . | . . . Relay Couplers Released . | . . . Fabnet Peak Effective % . | . . . Robots Rewired . | . . . Allies Hacked . | . . . Hacks Repelled . | . . . Allies | -11 -10 -10 -------- Run | Yrd Mat Min Total Allies . | . . . Largest Group . | . . . Highest-Rated Group . | . . . Highest-Rated Ally . | . . . Total Orders . | . . . Ally Attacks . | . . . Total Damage . | . . . Kills . | . . . Allies Corrupted . | . . . Allies Melted . | . . . Intel | -11 -10 -10 ------- Run | Yrd Mat Min Robot Analysis Total . | . . . Derelict Logs Recovered . | . . . Drone Launches . | . . . Drone Recoveries . | . . . Exploration | -11 -10 -10 ------------- Run | Yrd Mat Min Turns Passed 837 | 58 683 96 Spaces Moved 349 | 37 293 19 Core 4 | 4 . . Treads . | . . . Legs 345 | 33 293 19 Wheels . | . . . Hover . | . . . Flight . | . . . Fastest Speed 50 | 50 120 190 Average Speed 150 | 113 150 223 Slowest Speed 260 | 120 260 260 Overloaded Moves . | . . . Propulsion Burnouts . | . . . Robots Hopped . | . . . Cave-ins Triggered . | . . . Exploration Rate (%) 22 | 5 54 9 Regions Visited 2 Branch Regions 1 Pre-discovered Areas . | . . . Known Exits Taken 1 | . 1 . Unknown Exits Taken 1 | 1 . . Scrap Searched . | . . . Spaces Dug . | . . . Terrain Destroyed . | . . . Melee . | . . . Projectile . | . . . AOE . | . . . Terrain Rammed . | . . . Walls Destroyed . | . . . Machines Disabled . | . . . Actions | -11 -10 -10 --------- Run | Yrd Mat Min Total 540 | 48 441 51 Wait 60 | 2 58 . Move 347 | 36 292 19 Hop . | . . . Pick Up 13 | 2 11 . Fast Attach 14 | 7 7 . Attach 6 | . . 6 Detach . | . . . Swap 11 | . 10 1 Drop 10 | . 6 4 Fire 76 | 1 57 18 Melee . | . . . Ram . | . . . Kick 3 | . . 3 Crush . | . . . Escape Stasis . | . . . Rewire . | . . . Trap . | . . . Miscellaneous . | . . . Route ------- -11/Scrapyard -10/Materials (discovered 3 exits: [*Mat] / *Min x2) -10/Mines History --------- Turn | Location | Event 7 | -11/Scrapyard | Discovered new exit (range 15) 59 | -11/Scrapyard | Entered Materials 381 | -10/Materials | Identified exit to Mines 577 | -10/Materials | Repaired Lgt. Assault Rifle 605 | -10/Materials | Discovered new exit (range 13) 657 | -10/Materials | Build established: Mutant 742 | -10/Materials | Entered Mines 743 | -10/Mines | Assembled infested the area 748 | -10/Mines | Assisted by a Guerilla fighting off Assembled 777 | -10/Mines | Core integrity fell below 50% 786 | -10/Mines | Met a Derelict bent on vengeance 832 | -10/Mines | Core integrity fell below 20% 838 | -10/Mines | Destroyed by as-74731 with Assembled F-torch Last Messages --------------- 00764_ Kicked as-91804. 00767_ Lgt. Armor Plating destroyed. 00768_ Kicked as-91804 out of the way. 00769_ Aluminum Leg destroyed. 00771_ K-01 Serf destroyed. 00774_ Ion Engine destroyed. 00779_ Lgt. Assault Rifle destroyed. 00788_ Knocked back. 00789_ as-63236 destroyed. 00794_ Aluminum Leg destroyed. 00798_ as-19766 destroyed. 00807_ Lgt. Armor Plating destroyed. 00818_ Lgt. Assault Rifle destroyed. 00823_ as-60920 destroyed. 00825_ Acquired 20 matter. 00831_ Lgt. Assault Rifle destroyed. 00831_ Aluminum Leg destroyed. 00837_ Dropped Lrg. Storage Unit. 00838_ Dropped Ion Engine. 00838_ Med. Laser destroyed. Map ----- +----------------------------------------------------+ | ???????????????????????????????? | | ????????????????????? ?????????? | | ?????????????????? ? ????????? | | ????????????????? ?????????? | | ????????????????? ??????????? | | ?????????????????" ???????????? | | ???????????????? %????????????? | | ????????????? ?? ?????????????? | | ??????????### ?? #?????????????? | | ?????????# ??# ##????????????? | | ????????? ##" "##???????????? | | ????????# ## =%*#???????????? | | ????????# ""=%#???????????? | | ???????## """]#???????????? | | ???????# ### """=#???????????? | | ???????# #?#%""" #???????????? | | ???????# ##?# #???????????? | | ??????##%#???# #???????????? | | ?????## #???# !! #???????????? | | ?????# #???# #???????????? | | ?????# ##???#######???????????? | | ?????# #??????????????????????? | | ?????# #??????????????????????? | | ???### ####???????????????????? | | ??## ! #???????????????????? | | ??# !@ #???????????????????? | | ??# aa #???????????????????? | | ??## a ##???????????????????? | | ???## ##????????????????????? | | ????# a #?????????????????????? | | ????# ##?????????????????????? | | ????# ##??????????????????????? | | ????# a????????????????????????? | | ????# ????????????????????????? | | ???? ????????????????????????? | | ???? ????????????????????????? | | ???# ????????????????????????? | | ???## ????????????????????????? | | ????## ????????????????????????? | | ???????????????????????????????? | | ???????????????????????????????? | | ???????????????????????????????? | | ???????????????????????????????? | | ???????????????????????????????? | | ???????????????????????????????? | | ???????????????????????????????? | | ???????????????????????????????? | | ???????????????????????????????? | | ???????????????????????????????? | | ???????????????????????????????? | +----------------------------------------------------+ Best States ------------- Heat Dissipation 25 Energy Generation 10 Energy Capacity 250 Matter Stores 300 Matter Capacity 300 Sight Range 16 Terrain Scan Density 10 Armor Coverage 150 Evasion (%) 55 Item Schematics ----------------- None Robot Schematics ------------------ None Fabricated ------------ Nothing Alien Tech Used ----------------- None Achievements -------------- None Challenges ------------ None Game ------ Seed SuperchargedMachineBlaster Manual? 0 Play Time 00:09:39 Cumulative 104.5 hours Start 2024.04.21 @ 12:10:44 End 2024.04.21 @ 12:19:14 Sessions 1 Manual Loads 0 Difficulty Rogue Special Mode None Game No. 112 Rogue 107 Adventurer 5 Explorer 0 Win Type - Total 3 Types 2/0/0/1/0/0/0/0/0 Lore% 49 Gallery% 63 Achievement% 48 Wizard Run 0 Options --------- Layout 1 ASCII 0 Keyboard 0 Movement Mouse Keybinds 0 Fullscreen 1 Font 24/Terminus Map View 50x35 Zoom Use 0% Tactical HUD 1 Map Filters NONE Filters NONE Steam 1 RUN: 9a3147e1-2dc2-4aae-aa4a-d7202e1674b9